bitfinex-derivatives/quotes_SOLF0:USTF0_20241016
["timestamp","ask_amount","ask_price","bid_price","bid_amount"]
[1729041846542,2.8125,154.82,154.73,9.0115]
[1729041846739,2.8125,154.82,154.73,5.78]
[1729041847134,3.2304,154.79,154.73,5.78]
[1729041847833,6.0422,154.82,154.75,22.35]
[1729041848036,2.8125,154.82,154.75,22.35]
[1729041848246,3.2302,154.8,154.75,25.5811]
[1729041848433,2.8125,154.82,154.73,22.35]
[1729041848633,2.8125,154.82,154.73,5.78]
[1729041848849,3.2308,154.77,154.73,9.0115]
[1729041849236,2.8125,154.82,154.73,5.78]
[1729041850039,2.8125,154.82,154.7,31.3621]
[1729041850237,22.35,154.81,154.69,98.08047139]
[1729041850439,3.2317,154.73,154.69,98.08047139]
[1729041850769,8.5925,154.82,154.7,22.35]
[1729041850945,3.2306,154.78,154.7,22.35]
[1729041851248,8.5925,154.82,154.73,22.35]
[1729041851454,8.5925,154.82,154.73,28.13]
[1729041851643,3.2306,154.78,154.73,28.13]
[1729041852146,3.2303,154.79,154.73,28.13]
[1729041852346,8.5925,154.82,154.73,28.13]
[1729041853148,8.5925,154.82,154.73,5.78]
[1729041853350,0.99420251,154.81,154.73,5.78]
[1729041853654,0.99420251,154.81,154.7,5.78]
[1729041853840,3.2317,154.73,154.7,5.78]
[1729041854344,5.78,154.78,154.7,5.78]
[1729041854879,1.3223,154.77,154.7,5.78]
[1729041855748,3.2319,154.72,154.7,5.78]
[1729041856651,3.232,154.71,154.68,22.35]
[1729041857643,1.3223,154.77,154.67,5.78]
[1729041857849,3.2323,154.7,154.67,5.78]
[1729041858653,2.7625,154.75,154.65,22.35]
[1729041858853,5.78,154.74,154.65,5.78]
[1729041859353,3.2321,154.71,154.67,3.2328]
[1729041859556,3.2321,154.71,154.65,5.78]
[1729041860053,3.2326,154.68,154.65,5.78]
[1729041860256,5.78,154.74,154.65,5.78]
[1729041860257,1.3064,154.7,154.65,5.78]
[1729041860450,3.2324,154.69,154.65,9.0132]
[1729041860757,5.78,154.74,154.65,28.13]
[1729041861056,3.2321,154.71,154.66,3.2328]
[1729041861464,3.2321,154.71,154.65,28.13]
[1729041861759,3.2321,154.71,154.67,3.2328]
[1729041862352,3.2318,154.72,154.67,3.2328]
[1729041862662,2.7625,154.75,154.69,3.2324]
[1729041862850,2.7625,154.75,154.68,22.35]
[1729041863051,3.2317,154.73,154.68,25.5825]
[1729041863449,3.2317,154.73,154.69,5.72]
[1729041863656,2.7625,154.75,154.69,5.72]
[1729041863657,3.2318,154.72,154.69,5.72]
[1729041865259,2.7625,154.75,154.69,5.72]
[1729041865459,3.2322,154.7,154.69,5.72]
[1729041865660,3.2322,154.7,154.66,5.72]
[1729041865956,3.2319,154.72,154.66,5.72]
[1729041866161,2.7625,154.75,154.66,5.72]
[1729041866751,3.2327,154.68,154.66,5.72]
[1729041866952,3.2327,154.68,154.63,25.5835]
[1729041867151,3.2327,154.68,154.64,5.72]
[1729041867956,3.2327,154.68,154.63,31.3035]
[1729041868354,5.72,154.74,154.63,28.07]
[1729041868550,0.9946553,154.73,154.63,28.07]
[1729041868969,23.3446553,154.73,154.57,22.35]
[1729041869158,0.9946553,154.72,154.58,5.72]
[1729041869657,1.3806,154.71,154.58,5.72]
[1729041869850,3.2334,154.65,154.6,3.2341]
[1729041870255,9.00977709,154.7,154.58,5.72]
[1729041871163,3.2334,154.65,154.6,25.5841]
[1729041874665,31.35977709,154.7,154.57,22.35]
[1729041874863,3.2338,154.63,154.58,5.72]
[1729041875567,3.2338,154.63,154.59,3.2344]
[1729041875965,5.72,154.66,154.57,22.35]
[1729041876166,3.2344,154.6,154.56,9.9551]
[1729041876960,1.3902,154.64,154.56,6.72]
[1729041877156,1.3882,154.65,154.58,22.35]
[1729041877462,1.3902,154.69,154.58,22.35]
[1729041877658,2.7205,154.69,154.58,22.35]
[1729041878254,3.2336,154.64,154.6,3.2341]
[1729041879265,3.2337,154.63,154.58,25.5845]
[1729041879456,3.2337,154.63,154.58,22.35]
[1729041879769,2.7205,154.69,154.56,6.72]
[1729041879970,2.7205,154.69,154.57,3.2348]
[1729041880366,0.99500219,154.68,154.56,6.72]
[1729041880559,3.234,154.62,154.58,3.2347]
[1729041882461,3.2336,154.64,154.59,3.2343]
[1729041882878,19.49,154.81,154.61,22.35]
[1729041883074,2.7786,154.76,154.66,22.35]
[1729041883374,2.7786,154.76,154.66,28.07]
[1729041883582,6.0096,154.76,154.71,3.2319]
[1729041883872,2.7786,154.76,154.69,22.35]
[1729041885373,3.2312,154.75,154.7,3.2321]
[1729041885776,2.7786,154.76,154.69,22.35]
[1729041885982,6.0095,154.76,154.71,3.2318]
[1729041886176,2.7786,154.76,154.7,5.72]
[1729041886477,6.0095,154.76,154.72,3.2317]
[1729041886680,6.0095,154.76,154.7,5.72]
[1729041887971,3.2309,154.76,154.7,5.72]
[1729041888171,2.7735,154.81,154.71,22.35]
[1729041888371,2.7735,154.81,154.73,22.35]
[1729041888570,2.7735,154.81,154.74,5.78]
[1729041888877,3.2302,154.8,154.74,5.78]
[1729041889278,3.2302,154.8,154.75,3.231]
[1729041889468,2.7735,154.81,154.74,5.78]
[1729041889774,1.3599,154.81,154.77,3.2305]
[1729041889984,1.3599,154.81,154.74,5.78]
[1729041891095,1.3599,154.81,154.76,3.2307]
[1729041891385,1.3599,154.81,154.74,5.78]
[1729041891784,3.2299,154.81,154.76,3.2308]
[1729041892374,1.0,154.83,154.76,22.35]
[1729041892570,1.0,154.83,154.74,5.78]
[1729041892571,1.0,154.83,154.81,22.35]
[1729041892791,1.0,154.92,154.82,5.78]
[1729041892984,1.0,154.92,154.85,3.229]
[1729041893386,1.0,154.92,154.86,28.13]
[1729041893887,1.0,154.92,154.84,22.35]
[1729041894083,1.0,154.92,154.85,5.78]
[1729041894472,3.2288,154.86,154.8,3.2301]
[1729041894671,6.78,154.92,154.81,5.78]
[1729041894875,23.7743,154.9,154.77,22.35]
[1729041895076,3.2291,154.85,154.79,3.2301]
[1729041895272,1.3531,154.89,154.78,5.78]
[1729041895483,0.99340226,154.88,154.78,5.78]
[1729041895684,3.2287,154.87,154.81,3.2299]
[1729041895875,1.3531,154.89,154.78,5.78]
[1729041896079,0.99340197,154.88,154.78,5.78]
[1729041896283,1.376,154.88,154.78,5.78]
[1729041896487,1.376,154.88,154.79,3.2302]
[1729041896679,1.376,154.88,154.8,5.78]
[1729041897193,3.2288,154.86,154.8,5.78]
[1729041897681,3.2288,154.86,154.79,3.2301]
[1729041897884,3.2293,154.84,154.8,5.78]
[1729041898071,7.156,154.88,154.8,5.78]
[1729041898278,3.2284,154.89,154.82,22.35]
[1729041898483,3.2284,154.89,154.83,3.2294]
[1729041898993,3.2284,154.89,154.84,5.78]
[1729041899488,3.2288,154.87,154.84,5.78]
[1729041900285,1.4243,154.9,154.84,5.78]
[1729041900584,3.2282,154.89,154.84,5.78]
[1729041901095,3.2287,154.87,154.84,5.78]
[1729041901387,1.0,154.92,154.84,5.78]
[1729041901783,22.35,154.9,154.81,5.78]
[1729041901986,22.35,154.9,154.78,3.2305]
[1729041901987,28.13,154.9,154.78,3.2305]
[1729041902281,22.35,154.88,154.79,5.78]
[1729041902488,2.7669,154.87,154.79,5.78]
[1729041902890,3.2291,154.85,154.79,5.78]
[1729041903187,2.7669,154.87,154.79,5.78]
[1729041903377,2.7669,154.87,154.74,1.3642]
[1729041903378,3.23,154.81,154.74,1.3642]
[1729041903585,1.3979,154.86,154.75,5.78]
[1729041903984,3.2294,154.84,154.78,3.2305]
[1729041904288,1.3979,154.86,154.79,5.78]
[1729041904497,3.2295,154.84,154.79,5.78]
[1729041905087,3.2295,154.83,154.79,5.78]
[1729041905986,1.3979,154.86,154.64,23.35]
[1729041906192,1.3979,154.86,154.71,22.35]
[1729041906193,22.35,154.85,154.71,22.35]
[1729041906380,22.35,154.82,154.73,5.78]
[1729041906580,3.2312,154.75,154.73,5.78]
[1729041906880,28.13,154.82,154.7,5.78]
[1729041907079,31.36468596,154.82,154.7,5.78]
[1729041907286,31.36468596,154.82,154.7,9.012]
[1729041907487,22.35,154.8,154.7,5.78]
[1729041907688,4.192,154.79,154.7,5.78]
[1729041907882,3.2316,154.73,154.68,3.2325]
[1729041908082,3.2316,154.73,154.68,9.0125]
[1729041908797,3.2314,154.74,154.69,101.30652016]
[1729041909298,5.78,154.78,154.69,101.30652016]
[1729041909488,22.35,154.77,154.68,5.78]
[1729041910193,22.35,154.75,154.68,5.78]
[1729041910485,3.2323,154.7,154.65,5.78]
[1729041911187,3.2324,154.69,154.65,9.0132]
[1729041911388,5.78,154.74,154.65,5.78]
[1729041911781,3.2317,154.73,154.68,3.2325]
[1729041911996,5.78,154.78,154.68,22.35]
[1729041912292,3.2313,154.75,154.7,3.2322]
[1729041912489,5.78,154.78,154.69,5.78]
[1729041912879,3.2314,154.74,154.69,9.0124]
[1729041914691,3.2309,154.77,154.72,3.2317]
[1729041914900,4.192,154.79,154.71,22.35]
[1729041915495,1.4241,154.79,154.73,3.2315]
[1729041915793,1.4241,154.79,154.73,5.78]
[1729041916289,1.4241,154.79,154.66,22.35]
[1729041916290,3.2311,154.76,154.7,9.012]
[1729041916499,1.4241,154.79,154.7,9.012]
[1729041916727,1.4241,154.79,154.66,22.35]
[1729041916728,1.4241,154.79,154.68,5.78]
[1729041916893,22.35,154.77,154.68,5.78]
[1729041917094,3.2315,154.74,154.69,3.2323]
[1729041917283,22.35,154.77,154.69,3.2323]
[1729041917488,22.35,154.75,154.62,5.78]
[1729041917683,3.2319,154.72,154.67,3.2326]
[1729041917897,5.78,154.76,154.65,22.35]
[1729041918097,5.78,154.76,154.66,5.78]
[1729041919887,3.2318,154.72,154.67,3.2328]
[1729041920307,5.78,154.76,154.66,5.78]
[1729041920489,3.2322,154.7,154.65,3.2332]
[1729041920698,3.2322,154.7,154.65,9.2132]
[1729041920899,5.78,154.76,154.65,5.98]
[1729041921103,5.78,154.76,154.67,3.2328]
[1729041922102,3.2321,154.71,154.65,5.98]
[1729041922700,5.98,154.75,154.65,5.98]
[1729041922898,3.2322,154.7,154.65,5.98]
[1729041923099,22.35,154.74,154.65,5.98]
[1729041924105,3.2324,154.7,154.65,9.2132]
[1729041924497,3.2326,154.68,154.65,5.98]
[1729041924702,25.56994438,154.74,154.65,5.98]
[1729041924896,22.35,154.72,154.64,1.0]
[1729041925203,1.3825,154.71,154.64,1.0]
[1729041925397,3.2329,154.67,154.64,1.0]
[1729041925597,10.0816,154.71,154.6,6.98]
[1729041926125,3.2335,154.64,154.6,4.2343]
[1729041926301,22.35,154.69,154.6,1.0]
[1729041927010,3.2335,154.64,154.6,1.0]
[1729041927403,3.2328,154.68,154.63,3.2335]
[1729041927813,10.0816,154.71,154.6,23.35]
[1729041928010,3.233,154.67,154.62,3.2337]
[1729041928305,10.0816,154.71,154.6,23.35]
[1729041928807,3.2328,154.67,154.6,23.35]
[1729041929208,3.2328,154.67,154.62,3.2337]
[1729041929409,3.2328,154.67,154.6,23.35]
[1729041929607,3.2328,154.67,154.6,1.0]
[1729041929806,3.2328,154.67,154.62,3.2337]
[1729041930211,3.2328,154.67,154.6,1.0]
[1729041930410,3.2325,154.69,154.63,3.2336]
[1729041930611,4.1016,154.71,154.62,28.33]
[1729041930810,4.1016,154.71,154.62,5.98]
[1729041931201,3.2325,154.69,154.62,9.2136]
[1729041931403,4.1016,154.71,154.64,22.35]
[1729041931404,2.7363,154.71,154.64,22.35]
[1729041931612,1.3977,154.76,154.67,22.35]
[1729041931805,2.8406,154.76,154.64,22.35]
[1729041932513,22.35,154.75,154.62,28.33]
[1729041932715,2.8406,154.76,154.65,22.35]
[1729041933017,22.35,154.75,154.62,28.33]
[1729041933411,1.3964,154.74,154.65,22.35]
[1729041933714,1.3964,154.74,154.66,5.98]
[1729041933909,3.2316,154.73,154.69,3.2323]
[1729041934312,1.3964,154.74,154.66,5.98]
[1729041934511,3.2316,154.73,154.69,3.2323]
[1729041935546,2.8406,154.76,154.71,3.2318]
[1729041935547,3.2312,154.75,154.71,3.2318]
[1729041936812,2.8406,154.76,154.71,3.2318]
[1729041937118,2.8406,154.76,154.68,3.2325]
[1729041937306,2.8406,154.76,154.67,22.35]
[1729041937908,3.2315,154.74,154.7,3.2321]
[1729041938113,3.2315,154.74,154.67,22.35]
[1729041938317,2.8406,154.76,154.67,22.35]
[1729041938519,3.2313,154.74,154.7,3.232]
[1729041938714,2.8406,154.76,154.66,5.98]
[1729041939016,2.8406,154.76,154.67,3.2327]
[1729041939017,3.2319,154.72,154.67,3.2327]
[1729041939317,22.35,154.81,154.68,22.35]
[1729041939519,5.20188034,154.8,154.68,22.35]
[1729041939720,0.99428034,154.79,154.68,22.35]
[1729041939907,0.99428034,154.79,154.7,3.232]
[1729041940219,22.35,154.78,154.68,5.98]
[1729041940610,0.99435976,154.77,154.68,5.98]
[1729041940914,5.98,154.76,154.68,5.98]
[1729041941115,28.33,154.76,154.65,5.98]
[1729041942008,3.2319,154.72,154.66,3.2328]
[1729041943521,3.2323,154.7,154.65,3.2331]
[1729041943721,3.2323,154.7,154.64,5.98]
[1729041944319,3.2323,154.7,154.66,3.233]
[1729041947321,28.33,154.76,154.66,3.233]
[1729041947322,10.0429,154.78,154.67,5.98]
[1729041947920,14.97435237,154.77,154.67,19.96]
[1729041948115,10.0429,154.78,154.69,13.98]
[1729041949629,3.2313,154.75,154.7,3.232]
[1729041949828,3.2313,154.75,154.67,28.34]
[1729041950825,3.2313,154.75,154.7,3.232]
[1729041951423,10.0429,154.78,154.7,3.232]
[1729041951727,10.0429,154.78,154.69,3.2323]
[1729041952113,3.2315,154.74,154.67,28.28]
[1729041952314,4.0629,154.78,154.67,28.28]
[1729041952519,4.0629,154.78,154.7,22.36]
[1729041952920,4.0629,154.78,154.72,3.2316]
[1729041953123,4.0629,154.78,154.7,22.36]
[1729041953526,4.0629,154.78,154.72,3.2317]
[1729041953722,4.0629,154.78,154.67,28.28]
[1729041954034,4.0629,154.78,154.71,3.2318]
[1729041954216,4.0629,154.78,154.7,22.36]
[1729041955114,4.0629,154.78,154.73,3.2314]
[1729041955319,4.0629,154.78,154.67,28.28]
[1729041956628,3.2313,154.75,154.7,3.2321]
[1729041957028,3.2313,154.75,154.67,28.28]
[1729041957622,4.0629,154.78,154.73,3.2315]
[1729041957623,3.2308,154.77,154.73,3.2315]
[1729041957820,4.0629,154.78,154.67,28.28]
[1729041958224,3.2309,154.76,154.67,28.28]
[1729041958620,4.0629,154.78,154.67,28.28]
[1729041959329,3.2312,154.75,154.71,3.2319]
[1729041959731,3.2314,154.74,154.71,3.2319]
[1729041960032,3.2314,154.74,154.67,28.28]
[1729041960234,3.2314,154.74,154.7,3.232]
[1729041960423,3.2314,154.74,154.67,28.28]
[1729041960625,3.2314,154.74,154.69,3.2324]
[1729041960928,3.2314,154.74,154.67,28.28]
[1729041961124,4.0629,154.78,154.67,28.28]
[1729041961324,3.2311,154.76,154.73,3.2314]
[1729041961635,2.7518,154.78,154.71,5.92]
[1729041961826,5.9824,154.78,154.74,3.2312]
[1729041962131,1.3108,154.86,154.75,22.36]
[1729041962333,3.65815927,154.85,154.76,5.92]
[1729041962523,2.6643,154.85,154.78,22.36]
[1729041962835,2.6643,154.85,154.76,5.92]
[1729041962836,1.0,154.87,154.84,22.36]
[1729041963033,1.0,154.87,154.85,5.92]
[1729041964125,1.0,154.87,154.86,3.2288]
[1729041964644,1.0,154.96,154.86,22.36]
[1729041964820,1.0,154.96,154.89,22.36]
[1729041965029,3.2275,154.93,154.84,3.2292]
[1729041965227,22.36,154.94,154.78,22.36]
[1729041965427,2.6967,154.91,154.79,5.9]
[1729041965624,3.2287,154.87,154.79,5.9]
[1729041966540,3.2284,154.88,154.79,5.9]
[1729041966836,3.2284,154.88,154.82,3.2295]
[1729041967038,1.3525,154.9,154.79,5.9]
[1729041967227,5.9245,154.91,154.86,3.2288]
[1729041967536,1.0,154.92,154.84,28.26]
[1729041967932,1.0,154.92,154.87,3.2285]
[1729041968633,1.0,154.92,154.88,3.2283]
[1729041970749,1.0,154.92,154.84,28.26]
[1729041971042,1.0,154.92,154.9,3.228]
[1729041971342,1.0,154.92,154.88,5.9]
[1729041971647,1.0,154.92,154.91,3.2278]
[1729041971838,1.0,154.92,154.88,5.9]
[1729041972240,4.2276,154.92,154.88,5.9]
[1729041972748,4.2276,154.92,154.88,9.1284]
[1729041973141,3.228,154.9,154.85,3.2289]
[1729041973538,1.0,154.92,154.81,22.36]
[1729041973751,1.0,154.92,154.82,5.9]
[1729041974451,3.2286,154.87,154.83,3.2294]
[1729041974648,3.2286,154.87,154.82,5.9]
[1729041974649,1.0,154.92,154.82,5.9]
[1729041975044,3.2284,154.88,154.83,3.2293]
[1729041975345,5.9,154.9,154.78,28.26]
[1729041975549,22.36,154.89,154.78,5.9]
[1729041976853,22.36,154.89,154.78,9.1303]
[1729041977047,5.9,154.9,154.79,22.36]
[1729041977243,0.99354084,154.89,154.79,22.36]
[1729041977443,5.9,154.9,154.79,22.36]
[1729041978166,3.2286,154.88,154.82,3.2295]
[1729041978352,3.2286,154.88,154.79,22.36]
[1729041978843,5.94,154.9,154.79,22.36]
[1729041979349,3.2288,154.87,154.81,3.2298]
[1729041979750,5.94,154.9,154.81,3.2298]
[1729041980451,3.2288,154.87,154.81,3.2298]
[1729041980651,5.94,154.9,154.81,3.2298]
[1729041980946,3.2288,154.87,154.81,3.2298]
[1729041981160,22.36,154.89,154.78,5.9]
[1729041981649,2.7605,154.88,154.78,5.9]
[1729041983152,1.3616,154.87,154.78,5.9]
[1729041983349,3.2294,154.84,154.79,3.2302]
[1729041984954,3.2298,154.82,154.77,3.2306]
[1729041985146,5.94,154.86,154.73,98.04255561]
[1729041985147,22.36,154.84,154.73,103.98255561]
[1729041985351,1.4371,154.81,154.73,103.98255561]
[1729041985549,3.231,154.76,154.7,5.94]
[1729041986155,2.8046,154.8,154.7,5.94]
[1729041986156,3.2311,154.75,154.71,3.2318]
[1729041987760,5.94,154.78,154.71,3.2318]
[1729041988064,3.2313,154.74,154.7,3.2321]
[1729041988859,3.2317,154.73,154.69,9.1723]
[1729041989055,3.2317,154.73,154.64,1.0]
[1729041989056,5.94,154.78,154.64,23.36]
[1729041989254,5.94,154.78,154.65,5.94]
[1729041989552,3.2321,154.71,154.66,3.2329]
[1729041990157,5.94,154.78,154.65,5.94]
[1729041990759,3.2317,154.73,154.68,3.2325]
[1729041992855,5.94,154.78,154.65,5.94]
[1729041993460,3.2316,154.73,154.65,5.94]
[1729041993665,3.2175881,154.76,154.65,5.94]
[1729041993965,5.94,154.78,154.68,3.2324]
[1729041994564,5.94,154.78,154.65,5.94]
[1729041994966,5.94,154.78,154.67,22.36]
[1729041995261,3.2312,154.75,154.7,3.232]
[1729041995764,5.94,154.78,154.67,22.36]
[1729041996459,3.2313,154.75,154.7,3.2321]
[1729041997952,3.2314,154.74,154.7,3.2321]
[1729041998260,5.96,154.77,154.71,3.2318]
[1729041999361,5.96,154.78,154.69,28.32]
[1729042000459,3.2311,154.76,154.72,3.2316]
[1729042001758,5.96,154.78,154.69,28.32]
[1729042001958,2.8046,154.8,154.73,3.2314]
[1729042002157,5.96,154.79,154.72,22.36]
[1729042003066,9.1903,154.79,154.74,3.2313]
[1729042003765,9.1903,154.79,154.72,22.36]
[1729042003969,3.2303,154.79,154.74,3.2313]
[1729042004164,2.8046,154.8,154.67,22.36]
[1729042004372,2.8046,154.8,154.68,5.94]
[1729042004982,3.2311,154.76,154.72,3.2317]
[1729042005266,2.8046,154.8,154.7,22.36]
[1729042005267,5.94,154.78,154.7,22.36]
[1729042006358,3.2306,154.78,154.74,3.2313]
[1729042006561,3.2306,154.78,154.71,5.94]
[1729042006967,3.2306,154.78,154.74,3.2312]
[1729042007472,3.2306,154.78,154.71,5.94]
[1729042007859,3.2308,154.77,154.71,5.94]
[1729042008271,3.2308,154.77,154.73,3.2314]
[1729042008672,3.2309,154.76,154.73,3.2314]
[1729042012074,5.8,154.79,154.71,19.91]
[1729042012280,3.2306,154.78,154.74,3.2312]
[1729042013478,3.2306,154.78,154.75,3.2311]
[1729042014379,3.2306,154.78,154.74,3.2313]
[1729042014576,13.97,154.78,154.68,13.97]
[1729042014771,13.97,154.78,154.68,19.77]
[1729042014970,13.97,154.78,154.73,3.2315]
[1729042015382,1.4371,154.81,154.8,3.2301]
[1729042015577,1.367,154.85,154.77,13.97]
[1729042015777,3.2294,154.84,154.77,13.97]
[1729042015981,3.2294,154.84,154.79,3.2302]
[1729042016478,1.367,154.85,154.77,13.97]
[1729042016700,1.367,154.85,154.77,17.2006]
[1729042017375,18.54237676,154.85,154.74,13.97]
[1729042017570,18.54237676,154.85,154.75,3.231]
[1729042017773,3.2297,154.82,154.74,19.77]
[1729042018076,13.97,154.84,154.74,19.77]
[1729042018380,13.97,154.84,154.77,3.2307]
[1729042018582,3.2299,154.81,154.74,19.77]
[1729042018781,4.57237676,154.85,154.74,19.77]
[1729042018782,19.77,154.82,154.74,5.8]
[1729042019189,3.2305,154.79,154.74,5.8]
[1729042019490,19.77,154.82,154.74,3.2312]
[1729042019794,13.97,154.8,154.71,19.77]
[1729042020087,1.4288,154.79,154.71,19.77]
[1729042020489,3.2306,154.78,154.74,3.2313]
[1729042021084,3.2312,154.75,154.71,9.0319]
[1729042021587,1.3461,154.77,154.71,5.8]
[1729042021793,3.2313,154.75,154.7,3.232]
[1729042022189,1.4288,154.79,154.73,13.97]
[1729042022391,9.0299,154.81,154.73,13.97]
[1729042022903,5.8,154.81,154.73,13.97]
[1729042023500,18.0213,154.84,154.75,13.97]
[1729042023799,9.8513,154.84,154.77,13.97]
[1729042024093,2.6526,154.84,154.77,13.97]
[1729042024485,5.8819,154.84,154.79,3.2303]
[1729042024888,2.6526,154.84,154.76,5.8]
[1729042025095,3.2297,154.82,154.77,3.2305]
[1729042025896,3.2298,154.82,154.77,3.2305]
[1729042028497,2.6526,154.84,154.75,19.77]
[1729042028790,3.2295,154.83,154.75,19.77]
[1729042028997,2.6526,154.84,154.78,3.2304]
[1729042030403,3.2297,154.82,154.78,3.2304]
[1729042032998,2.6526,154.84,154.77,13.97]
[1729042033200,5.8,154.88,154.79,13.97]
[1729042033495,3.2287,154.87,154.81,3.2297]
[1729042033699,2.6467,154.9,154.81,13.97]
[1729042034215,3.2282,154.89,154.85,3.2289]
[1729042034391,13.97,154.87,154.78,5.8]
[1729042034593,13.97,154.85,154.75,13.97]
[1729042034789,13.97,154.83,154.75,5.8]
[1729042035194,16.7055,154.83,154.75,5.8]
[1729042035897,3.2302,154.8,154.76,3.2309]
[1729042036297,16.7055,154.83,154.75,5.8]
[1729042036499,3.2298,154.82,154.77,3.2305]
[1729042037496,3.2302,154.8,154.75,9.031]
[1729042037801,3.2302,154.8,154.75,5.8]
[1729042038195,19.935,154.83,154.78,3.2303]
[1729042038413,70.8,154.96,154.78,13.97]
[1729042038614,18.0912,154.91,154.8,13.97]
[1729042038919,18.0912,154.91,154.79,5.68]
[1729042038920,3.228,154.9,154.86,3.2287]
[1729042039319,4.1212,154.91,154.83,19.65]
[1729042039512,2.696,154.91,154.85,13.97]
[1729042039824,5.9239,154.91,154.87,3.2286]
[1729042040045,2.696,154.91,154.87,3.2286]
[1729042041317,4.2276,154.92,154.88,3.2284]
[1729042041522,1.0,154.92,154.88,3.2284]
[1729042046736,1.0,154.92,154.85,13.97]
[1729042046940,1.0,154.92,154.9,3.2279]
[1729042047239,1.0,154.92,154.87,19.63]
[1729042047433,1.0,154.92,154.88,5.66]
[1729042048027,1.0,154.92,154.91,3.2278]
[1729042049641,1.0,154.92,154.9,3.228]
[1729042049845,1.0,154.92,154.89,5.66]
[1729042050044,1.0,154.92,154.88,5.66]
[1729042050641,1.0,154.92,154.89,3.2282]
[1729042050841,1.0,154.92,154.88,5.66]
[1729042051336,4.2277,154.92,154.88,8.8882]
[1729042051543,14.97,154.92,154.77,6.4611]
[1729042051730,13.97,154.9,154.84,3.2291]
[1729042052326,3.2286,154.88,154.84,3.2291]
[1729042052615,16.3463,154.92,154.83,5.66]
[1729042052835,3.2282,154.9,154.83,5.66]
[1729042053012,2.3763,154.92,154.84,13.97]
[1729042053622,1.0,154.92,154.86,13.97]
[1729042053916,1.0,154.92,154.88,13.97]
[1729042054117,1.0,154.92,154.91,3.2278]
[1729042054334,1.0,154.92,154.91,8.8878]
[1729042055215,1.0,154.92,154.89,8.8882]
[1729042055608,1.0,154.92,154.89,5.66]
[1729042056406,1.0,154.92,154.9,3.228]
[1729042057521,1.0,154.92,154.89,5.66]
[1729042057820,1.0,154.92,154.87,8.8885]
[1729042058222,3.228,154.91,154.87,8.8885]
[1729042058523,1.0,154.92,154.87,8.8885]
[1729042058738,1.0,154.92,154.85,3.2289]
[1729042058919,1.0,154.92,154.84,13.97]
[1729042058920,13.97,154.87,154.71,104.53728381]
[1729042059213,3.2298,154.82,154.77,3.2306]
[1729042059611,13.97,154.84,154.74,13.97]